bitfinex/quotes_SOLUSD_20240717
["timestamp","ask_amount","ask_price","bid_price","bid_amount"]
[1721219436411,14.79,161.14,161.11,45.0]
[1721219436730,14.79,161.15,161.11,45.0]
[1721219437102,1.55128546,161.18,161.11,45.0]
[1721219437301,1.55139351,161.19,161.12,27.89631481]
[1721219437502,14.79,161.18,161.13,45.0]
[1721219437824,14.79,161.16,161.13,45.0]
[1721219438398,14.79,161.16,161.13,46.24104428]
[1721219438621,14.79,161.16,161.13,45.0]
[1721219439794,14.79,161.17,161.14,10.0]
[1721219440002,14.79,161.2,161.15,46.24089091]
[1721219440320,14.79,161.21,161.16,10.0]
[1721219440526,14.79,161.21,161.17,46.24066528]
[1721219440732,14.79,161.21,161.18,1.24066721]
[1721219440907,14.79,161.21,161.18,1.24066697]
[1721219441310,14.79,161.23,161.19,1.24059448]
[1721219441652,14.79,161.25,161.2,24.79]
[1721219441819,14.79,161.25,161.21,45.0]
[1721219442318,14.79,161.25,161.22,1.24037473]
[1721219442906,14.79,161.25,161.21,45.0]
[1721219443121,1.5504665,161.28,161.22,1.24037303]
[1721219443316,14.79,161.25,161.22,1.24037303]
[1721219443538,14.79,161.24,161.21,45.0]
[1721219443719,14.79,161.24,161.18,39.7976]
[1721219443921,14.79,161.21,161.19,45.0]
[1721219444132,59.16,161.28,161.19,45.0]
[1721219444133,14.79,161.23,161.19,45.0]
[1721219444817,6.2007,161.27,161.2,1.24048115]
[1721219445021,59.16,161.28,161.2,1.24048115]
[1721219445022,14.79,161.23,161.2,1.24048115]
[1721219445557,59.16,161.28,161.2,1.24048115]
[1721219445558,14.79,161.22,161.2,30.0]
[1721219446931,14.79,161.23,161.2,30.0]
[1721219447136,14.79,161.22,161.2,30.0]
[1721219447633,14.79,161.23,161.2,30.0]
[1721219448211,1.55061963,161.26,161.21,45.0]
[1721219448426,14.79,161.25,161.21,75.0]
[1721219448916,14.79,161.24,161.21,75.0]
[1721219450566,1.55045717,161.27,161.21,75.0]
[1721219450756,14.79,161.25,161.21,75.0]
[1721219451241,14.79,161.25,161.22,1.2403637]
[1721219451559,14.79,161.24,161.22,30.0]
[1721219451772,14.79,161.23,161.22,30.0]
[1721219452646,16.34073705,161.23,161.22,30.0]
[1721219453956,14.79,161.23,161.22,30.0]
[1721219454755,16.34071737,161.23,161.22,30.0]
[1721219455466,22.54301737,161.23,161.22,30.0]
[1721219457165,6.2039,161.19,161.1,57.81837241]
[1721219457361,14.79,161.17,161.13,30.0]
[1721219457744,14.79,161.16,161.13,30.0]
[1721219458447,14.79,161.17,161.13,30.0]
[1721219460036,14.79,161.18,161.14,45.0]
[1721219460349,14.79,161.18,161.15,30.0]
[1721219460852,14.79,161.17,161.15,30.0]
[1721219461450,14.79,161.16,161.15,30.0]
[1721219461659,14.79,161.17,161.15,30.0]
[1721219462361,14.79,161.19,161.15,31.24097649]
[1721219462541,14.79,161.21,161.16,55.0]
[1721219462743,14.79,161.21,161.17,1.24067137]
[1721219463062,14.79,161.21,161.18,1.24067051]
[1721219463663,14.79,161.21,161.18,30.0]
[1721219463871,14.79,161.21,161.19,45.0]
[1721219464338,14.79,161.22,161.19,45.0]
[1721219464763,14.79,161.21,161.19,30.0]
[1721219466963,14.79,161.2,161.19,30.0]
[1721219467360,1.55077192,161.23,161.19,30.0]
[1721219467361,14.79,161.21,161.19,30.0]
[1721219467553,14.79,161.2,161.19,30.0]
[1721219469450,1.55077192,161.23,161.19,30.0]
[1721219469451,14.79,161.21,161.19,30.0]
[1721219469878,14.79,161.2,161.19,30.0]
[1721219470169,14.79,161.21,161.19,30.0]
[1721219470560,14.79,161.22,161.19,30.0]
[1721219471155,14.79,161.23,161.2,1.24061078]
[1721219471353,14.79,161.23,161.2,30.0]
[1721219471955,14.79,161.22,161.2,30.0]
[1721219475359,14.79,161.21,161.2,30.0]
[1721219480868,20.993,161.21,161.2,30.0]
[1721219481072,101.9302,161.21,161.2,30.0]
[1721219481271,6.2034,161.2,161.09,30.8643]
[1721219481474,14.79,161.15,161.12,30.0]
[1721219482277,14.79,161.15,161.13,1.24108053]
[1721219482455,1.55134888,161.19,161.14,30.0]
[1721219482659,14.79,161.15,161.14,30.0]
[1721219485982,20.9953,161.15,161.14,30.0]
[1721219487385,14.79,161.08,161.07,30.0]
[1721219488265,7.75936478,161.11,161.07,30.0]
[1721219488478,14.79,161.08,161.07,30.0]
[1721219489375,1.55223686,161.09,161.07,30.0]
[1721219489574,14.79,161.08,161.07,30.0]
[1721219490288,1.55212061,161.11,161.07,30.0]
[1721219490880,6.2074,161.1,161.07,30.0]
[1721219491080,1.55219248,161.09,161.07,30.0]
[1721219492479,1.55217737,161.1,161.07,30.0]
[1721219493197,1.55200761,161.11,161.07,30.0]
[1721219493393,1.55199551,161.1,161.07,30.0]
[1721219493975,1.55205319,161.12,161.07,30.0]
[1721219494181,1.55205319,161.12,161.08,1.24147753]
[1721219494370,6.2062,161.13,161.08,30.0]
[1721219494573,1.55183589,161.12,161.08,30.0]
[1721219494794,1.55181885,161.14,161.09,1.24145508]
[1721219494980,1.55181885,161.14,161.09,45.0]
[1721219495291,1.55181885,161.14,161.09,75.0]
[1721219495588,7.75771885,161.14,161.09,30.0]
[1721219495782,36.0692,161.18,161.09,30.0]
[1721219495983,6.205,161.16,161.09,30.0]
[1721219496185,1.55167668,161.15,161.09,30.0]
[1721219496491,1.55167924,161.14,161.09,30.0]
[1721219497485,7.75637677,161.17,161.09,30.0]
[1721219498492,6.205,161.16,161.09,30.0]
[1721219498691,1.5516957,161.15,161.09,30.0]
[1721219498887,1.55172555,161.14,161.09,30.0]
[1721219499879,7.75667709,161.16,161.09,30.0]
[1721219500085,1.55167709,161.16,161.09,30.0]
[1721219501196,1.55167709,161.16,161.1,46.24134133]
[1721219501399,1.55142459,161.17,161.11,1.24113967]
[1721219501873,1.55142459,161.17,161.1,75.0]
[1721219502074,1.55142459,161.17,161.11,1.24117982]
[1721219502289,1.55142459,161.17,161.11,31.24117982]
[1721219502498,1.55142459,161.17,161.11,30.0]
[1721219504078,6.2052,161.16,161.11,30.0]
[1721219504291,1.55146697,161.15,161.11,30.0]
[1721219504790,1.55146691,161.14,161.11,30.0]
[1721219504999,1.55168706,161.17,161.11,30.0]
[1721219505174,6.2051,161.16,161.11,30.0]
[1721219505371,1.55165878,161.15,161.11,30.0]
[1721219505685,6.2051,161.16,161.11,30.0]
[1721219505686,1.55167993,161.14,161.11,30.0]
[1721219506604,1.55165893,161.15,161.11,30.0]
[1721219506778,1.55165697,161.14,161.11,30.0]
[1721219507397,1.55165258,161.16,161.11,30.0]
[1721219508294,1.55165258,161.16,161.12,1.24132176]
[1721219508601,1.55146024,161.17,161.12,31.24132176]
[1721219508896,7.75616024,161.17,161.12,30.0]
[1721219509098,1.55146024,161.17,161.12,30.0]
[1721219510504,6.2051,161.16,161.12,30.0]
[1721219510690,1.55162998,161.15,161.12,30.0]
[1721219511595,7.75702998,161.15,161.12,30.0]
[1721219511983,6.2058,161.14,161.12,30.0]
[1721219512186,16.37172977,161.13,161.12,30.0]
[1721219512502,75.65172977,161.13,161.02,15.6049]
[1721219512807,14.82,161.04,161.02,15.6049]
[1721219513582,1.5523926,161.08,161.02,15.6049]
[1721219513583,14.82,161.05,161.02,15.6049]
[1721219514006,14.82,161.06,161.03,1.24187932]
[1721219514300,1.55234915,161.09,161.03,1.24187932]
[1721219514505,1.55234915,161.09,161.03,30.0]
[1721219516003,7.76014915,161.09,161.03,30.0]
[1721219516713,29.65,161.08,161.03,30.0]
[1721219517005,1.55248059,161.07,161.03,30.0]
[1721219520283,7.76098059,161.07,161.03,30.0]
[1721219520483,1.55248059,161.07,161.03,30.0]
[1721219520694,1.55248059,161.07,160.98,16.0375]
[1721219520695,29.65,161.05,160.98,16.0375]
[1721219520902,1.55279517,161.04,160.99,30.0]
[1721219521296,29.65,161.05,160.99,31.24224142]
[1721219521608,1.55255264,161.04,160.99,31.24204211]
[1721219521809,1.55258047,161.07,160.99,31.24204211]
[1721219522599,1.55258047,161.07,161.0,45.0]
[1721219522914,1.55258047,161.07,160.98,26.0375]
[1721219522915,1.55258047,161.07,161.02,30.0]
[1721219523703,7.76108047,161.07,161.02,30.0]
[1721219523905,6.2088,161.06,161.02,30.0]
[1721219524111,1.55265174,161.05,161.02,30.0]
[1721219524298,1.55265174,161.04,161.02,30.0]
[1721219525199,7.76150802,161.06,161.02,30.0]
[1721219525705,1.55260802,161.06,161.02,30.0]
[1721219526990,7.76150802,161.06,161.02,30.0]
[1721219527191,1.55260802,161.06,161.02,30.0]
[1721219529503,1.55257782,161.07,161.02,30.0]
[1721219529703,1.55257782,161.07,161.02,31.24187714]
[1721219530003,6.2077,161.09,161.02,30.0]
[1721219530210,1.55238166,161.08,161.02,31.2419912]
[1721219530407,1.55236111,161.07,161.02,31.2419912]
[1721219530793,1.55236916,161.09,161.03,45.0]
[1721219530993,1.55236916,161.09,161.03,75.0]
[1721219532818,1.55236916,161.09,161.03,85.0]
[1721219533016,1.55219986,161.08,161.03,75.0]
[1721219533221,1.55220862,161.07,161.03,75.0]
[1721219533403,7.7598951,161.1,161.03,31.24183608]
[1721219534494,7.7598951,161.1,161.03,30.0]
[1721219534690,1.5522951,161.1,161.03,30.0]
[1721219536226,14.83,161.05,161.03,30.0]
[1721219542023,14.83,161.06,161.03,31.24184386]
[1721219542200,14.83,161.06,161.03,30.0]
[1721219544414,14.83,161.05,161.03,30.0]
[1721219544801,1.55250288,161.04,161.03,30.0]
[1721219545010,29.66,161.04,161.03,30.0]
[1721219545326,14.83,161.04,161.03,30.0]
[1721219545511,29.66,161.04,161.03,30.0]
[1721219545723,37.42220765,161.04,161.03,30.0]
[1721219545903,29.66,161.04,160.98,16.2391]
[1721219546106,1.55279578,161.03,161.0,30.0]
[1721219546302,14.83,161.01,161.0,30.0]
[1721219548242,16.38292011,161.01,161.0,30.0]
[1721219548611,16.38292011,161.01,160.95,30.0]
[1721219548813,14.83,160.98,160.95,30.0]
[1721219549635,14.83,160.98,160.95,31.24243748]
[1721219549941,14.83,160.98,160.95,30.0]
[1721219551227,1.55305862,160.97,160.95,30.0]
[1721219551424,14.83,160.96,160.95,30.0]
[1721219552824,29.66,160.96,160.95,30.0]
[1721219553511,14.83,160.96,160.95,30.0]
[1721219553716,29.66,160.96,160.95,30.0]
[1721219554011,14.83,160.96,160.92,0.8286672]
[1721219554206,1.5534088,160.95,160.93,30.0]
[1721219554425,14.83,160.94,160.93,30.0]
[1721219556114,1.55344002,160.99,160.93,30.0]
[1721219556315,14.83,160.94,160.93,30.0]
[1721219557615,7.76550916,160.98,160.93,30.0]
[1721219557616,14.83,160.95,160.93,30.0]
[1721219560644,14.83,160.96,160.95,30.0]
[1721219564737,14.83,160.96,160.92,0.8286672]
[1721219565041,14.83,160.96,160.93,30.0]
[1721219565732,16.38327133,160.95,160.93,30.0]
[1721219565934,14.83,160.95,160.93,30.0]
[1721219566135,14.83,160.96,160.93,30.0]
[1721219569323,14.83,160.94,160.93,30.0]
[1721219569835,21.5271,160.99,160.93,30.0]
[1721219570157,14.83,160.95,160.93,30.0]
[1721219570864,14.83,160.94,160.93,30.0]
[1721219572138,14.83,160.95,160.93,30.0]
[1721219573759,16.38342,160.94,160.93,30.0]
[1721219573960,14.83,160.94,160.93,30.0]
[1721219574441,14.83,160.95,160.93,30.0]
[1721219574642,14.83,160.94,160.93,30.0]
[1721219576636,1.55340028,160.98,160.93,30.0]
[1721219576841,14.83,160.95,160.93,30.0]
[1721219577069,14.83,160.94,160.93,30.0]
[1721219577766,14.83,160.95,160.93,30.0]
[1721219579142,14.83,160.94,160.93,30.0]
[1721219582885,1.55340028,160.98,160.93,30.0]
[1721219583043,1.55304175,161.02,160.94,46.2424334]
[1721219583247,22.1862,161.03,160.94,30.0]
[1721219583248,14.83,160.97,160.94,30.0]
[1721219584256,14.83,160.99,160.95,1.24254053]
[1721219584462,14.83,160.99,160.95,31.24254053]
[1721219584859,14.83,160.98,160.95,31.24254053]
[1721219585060,14.83,160.98,160.95,30.0]
[1721219585463,1.55317566,161.0,160.95,30.0]
[1721219585782,14.83,161.0,160.96,1.24236182]
[1721219585960,14.83,160.99,160.96,30.0]
[1721219586160,14.83,160.98,160.96,30.0]
[1721219587257,16.38308718,160.97,160.96,30.0]
[1721219587462,14.83,160.97,160.96,30.0]
[1721219588784,14.83,160.98,160.96,30.0]
[1721219588977,16.38318371,160.97,160.96,30.0]
[1721219589282,14.83,160.97,160.96,30.0]
[1721219590395,14.83,160.98,160.96,30.0]
[1721219591696,16.38302556,160.97,160.96,30.0]
[1721219591865,14.83,160.97,160.96,30.0]
[1721219593586,14.83,160.98,160.96,30.0]
[1721219593788,22.1862,161.03,160.96,30.0]
[1721219594093,53.77597671,161.21,160.97,1.24226017]
[1721219594094,14.83,161.01,160.97,1.24226017]
[1721219594301,14.83,161.01,160.97,31.24226017]
[1721219594764,1.55279692,161.04,160.97,31.24226017]
[1721219594965,14.83,161.01,160.97,31.24226017]
[1721219596492,1.55279838,161.03,160.97,30.0]
[1721219596677,14.83,161.01,160.97,30.0]
[1721219597204,14.83,161.02,160.98,46.24221105]
[1721219597366,14.83,161.02,160.99,1.24211288]
[1721219597566,14.83,161.01,160.98,75.0]
[1721219597776,14.83,161.01,160.99,1.24218595]
[1721219597977,14.83,161.02,160.99,1.24218595]
[1721219598382,14.83,161.02,160.99,31.24218595]
[1721219598707,14.83,161.02,160.99,30.0]
[1721219599204,14.83,161.03,161.0,1.24207373]
[1721219599395,14.83,161.03,161.0,31.24207373]
[1721219599584,14.83,161.04,161.0,31.24207373]
[1721219599771,14.83,161.04,161.0,30.0]
[1721219600099,1.55253035,161.05,161.0,30.0]
[1721219600100,14.83,161.03,161.0,30.0]
[1721219600596,14.83,161.02,161.0,30.0]
[1721219601169,14.83,161.03,161.0,30.0]
[1721219601572,14.83,161.04,161.0,30.0]
[1721219602193,14.83,161.03,161.0,30.0]
[1721219603170,14.83,161.03,161.01,1.24201346]
[1721219603480,14.83,161.03,161.01,30.0]
[1721219606475,14.83,161.02,161.01,30.0]
[1721219607090,21.0404,161.02,161.01,30.0]
[1721219607393,21.0404,161.02,160.93,14.83]
[1721219607394,21.0405,161.02,160.93,14.83]
[1721219607586,14.83,160.99,160.95,30.0]
[1721219608589,1.55290262,161.03,160.95,30.0]
[1721219608795,14.83,161.0,160.95,44.83]
[1721219608976,14.83,161.01,160.95,44.83]
[1721219609181,16.38289273,161.0,160.95,44.83]
[1721219609398,14.83,161.01,160.95,44.83]
[1721219609580,14.83,161.0,160.95,44.83]
[1721219609784,14.83,161.0,160.95,30.0]
[1721219609785,1.55289343,160.99,160.95,30.0]
[1721219609983,14.83,161.0,160.95,30.0]
[1721219610185,14.83,161.0,160.96,1.24232158]
[1721219610495,14.83,161.0,160.98,30.0]
[1721219611982,7.76309621,161.03,160.98,30.0]
[1721219612281,14.83,160.99,160.98,30.0]
[1721219612483,1.55299621,161.03,160.98,30.0]
[1721219612688,14.83,161.0,160.98,30.0]
[1721219612893,14.83,160.99,160.98,30.0]
[1721219613090,1.55290331,161.01,160.98,30.0]
[1721219613292,14.83,161.0,160.98,30.0]
[1721219615697,1.55290331,161.01,160.98,30.0]
[1721219615698,16.38290331,161.01,160.98,30.0]
[1721219615897,14.83,161.01,160.98,30.0]
[1721219616104,16.38288807,161.01,160.98,30.0]
[1721219616501,1.55289016,161.02,160.98,30.0]
[1721219616800,16.38268338,161.04,160.99,1.2421467]
[1721219617011,14.83,161.03,160.99,31.24217235]
[1721219617310,14.83,161.03,160.99,30.0]
[1721219618414,14.83,161.02,160.99,30.0]
[1721219622394,14.83,161.03,161.0,1.24216213]
[1721219622692,14.83,161.03,161.0,30.0]
[1721219623697,14.83,161.02,161.0,30.0]
[1721219624598,14.83,161.03,161.0,30.0]
[1721219626300,14.83,161.04,161.0,30.0]
[1721219626901,16.38262624,161.03,161.0,30.0]
[1721219627214,14.83,161.03,161.0,30.0]
[1721219627524,16.38262645,161.04,161.0,30.0]
[1721219627824,14.83,161.04,161.0,30.0]
[1721219628125,16.38258149,161.04,161.0,30.0]
[1721219628908,1.55261527,161.05,161.01,1.24209222]
[1721219629227,14.83,161.04,161.01,30.0]
[1721219630314,1.55248038,161.06,161.02,1.24192971]
[1721219630501,16.3823227,161.09,161.03,14.83]
[1721219630703,14.83,161.1,161.04,86.70633805]
[1721219630922,14.83,161.1,161.05,1.24160589]
[1721219631498,7.75765832,161.15,161.05,56.07160589]
[1721219631806,14.83,161.12,161.06,59.83]
[1721219631999,14.83,161.12,161.07,11.24139374]
[1721219632196,14.83,161.13,161.08,46.24135504]
[1721219632423,14.83,161.13,161.08,45.0]
[1721219632621,14.83,161.13,161.08,75.0]
[1721219633416,14.83,161.12,161.08,30.0]
[1721219633911,14.83,161.1,161.08,30.0]
[1721219634099,14.83,161.09,161.08,30.0]
[1721219634304,14.83,161.1,161.08,30.0]
[1721219634530,14.83,161.09,161.08,30.0]
[1721219634713,1.55179453,161.11,161.08,30.0]
[1721219634714,14.83,161.11,161.08,30.0]
[1721219636018,14.83,161.1,161.08,30.0]
[1721219636529,14.83,161.11,161.08,30.0]
[1721219637102,14.83,161.12,161.09,1.24151005]
[1721219637306,14.83,161.12,161.09,30.0]
[1721219637506,14.83,161.11,161.09,30.0]
[1721219637718,14.83,161.12,161.09,30.0]
[1721219641028,6.4891,161.17,161.1,1.24137041]
[1721219641219,14.83,161.15,161.11,11.24117227]
[1721219642209,14.83,161.15,161.11,41.24117227]
[1721219642723,14.83,161.16,161.11,41.24117227]
[1721219643234,14.83,161.16,161.12,1.2410925]
[1721219643429,14.83,161.17,161.12,31.2410925]
[1721219643811,14.83,161.17,161.13,45.0]
[1721219644013,14.83,161.17,161.14,1.24098473]
[1721219644429,14.83,161.17,161.14,31.24098473]
[1721219644633,14.83,161.17,161.15,1.24098421]
[1721219644833,14.83,161.19,161.15,1.24098421]
[1721219645033,14.83,161.19,161.15,11.24098421]
[1721219645345,14.83,161.2,161.15,24.83]
[1721219645642,14.83,161.2,161.16,45.0]
[1721219646534,14.83,161.2,161.16,75.0]
[1721219647626,6.2031,161.21,161.16,75.0]
[1721219647627,14.83,161.21,161.17,1.24068817]
[1721219647941,14.83,161.21,161.17,30.0]
[1721219648443,14.83,161.21,161.18,1.24067591]
[1721219648825,14.83,161.21,161.18,31.24067591]
[1721219649444,14.83,161.21,161.18,30.0]
[1721219650344,21.0329,161.22,161.18,30.0]
[1721219650525,14.83,161.23,161.19,1.24067554]
[1721219650844,14.83,161.23,161.19,31.24067554]
[1721219651042,14.83,161.24,161.2,45.0]
[1721219651234,14.83,161.25,161.2,45.0]
[1721219651436,14.83,161.23,161.2,45.0]
[1721219651743,14.83,161.23,161.2,30.0]
[1721219651940,14.83,161.23,161.21,1.24047653]
[1721219652147,14.83,161.24,161.21,1.24047653]
[1721219652723,14.83,161.24,161.21,31.24047653]
[1721219653141,14.83,161.24,161.21,30.0]
[1721219653646,14.83,161.24,161.22,1.24042803]
[1721219653942,14.83,161.24,161.22,30.0]
[1721219654320,30.483,161.28,161.22,30.0]
[1721219654321,7.75283742,161.23,161.22,30.0]
[1721219654650,21.0323,161.23,161.22,30.0]
[1721219655129,36.538,161.23,161.22,30.0]
[1721219656142,21.0323,161.23,161.22,30.0]
[1721219656451,1.55082526,161.26,161.18,26.5976]
[1721219656630,14.83,161.24,161.19,30.0]
[1721219656827,14.83,161.23,161.19,30.0]
[1721219657023,14.83,161.24,161.2,46.24044779]
[1721219657232,14.83,161.24,161.21,1.24041876]
[1721219657633,14.83,161.24,161.22,30.0]
[1721219658159,14.83,161.25,161.22,30.0]
[1721219658439,14.83,161.25,161.23,1.24031388]
[1721219658623,14.83,161.25,161.23,31.24031388]
[1721219659047,14.83,161.25,161.23,30.0]
[1721219659627,14.83,161.24,161.23,30.0]
[1721219660733,21.0319,161.24,161.23,30.0]
[1721219661935,21.0319,161.24,161.16,10.0]
[1721219661936,14.83,161.24,161.16,10.0]
[1721219662132,14.83,161.2,161.17,31.24057102]
[1721219662328,14.83,161.22,161.17,30.0]
[1721219662634,14.83,161.21,161.17,30.0]
[1721219663642,14.83,161.21,161.18,1.24061268]
[1721219664348,14.83,161.21,161.17,30.0]
[1721219664536,6.2028,161.22,161.17,30.0]
[1721219664847,1.55081896,161.21,161.14,16.2404]
[1721219665035,14.83,161.18,161.15,75.0]
[1721219665235,14.83,161.19,161.15,75.0]
[1721219666248,14.83,161.2,161.15,45.0]
[1721219666551,14.83,161.19,161.15,45.0]
[1721219667053,14.83,161.2,161.16,1.24077062]
[1721219667839,14.83,161.21,161.17,20.0]
[1721219668043,14.83,161.21,161.18,45.0]
[1721219668749,14.83,161.21,161.18,75.0]
[1721219669050,14.83,161.22,161.19,1.24057042]
[1721219669260,14.83,161.22,161.18,75.0]
[1721219669261,14.83,161.21,161.18,75.0]
[1721219669636,14.83,161.22,161.19,30.0]
[1721219669955,14.83,161.22,161.2,45.0]
[1721219671862,14.83,161.22,161.21,1.24048584]
[1721219672045,14.83,161.23,161.21,1.24048584]
[1721219672744,14.83,161.24,161.21,1.24048584]
[1721219673454,14.83,161.25,161.21,51.24048584]
[1721219673646,14.83,161.25,161.22,45.0]
[1721219673853,14.83,161.25,161.23,1.24026281]
[1721219674041,14.83,161.25,161.22,45.0]
[1721219674237,14.83,161.24,161.22,45.0]
[1721219674438,14.83,161.23,161.21,30.0]
[1721219674657,14.83,161.22,161.21,30.0]
[1721219675158,21.0327,161.22,161.21,30.0]
[1721219675345,14.83,161.22,161.21,30.0]
[1721219675934,6.2016,161.25,161.21,30.0]
[1721219676136,14.83,161.22,161.18,30.0]
[1721219676661,14.83,161.22,161.19,45.0]
[1721219677268,14.83,161.22,161.2,30.0]
[1721219677442,1.55066515,161.26,161.2,30.0]
[1721219677443,14.83,161.21,161.2,30.0]
[1721219679038,35.863,161.21,161.2,30.0]
[1721219679238,29.66,161.21,161.12,8.79667458]
[1721219679444,6.2041,161.19,161.14,30.0]
[1721219679663,14.83,161.15,161.14,30.0]
[1721219680748,14.83,161.16,161.14,30.0]
[1721219680953,14.83,161.16,161.12,1.24105933]
[1721219681147,14.83,161.16,161.12,11.24105933]
[1721219681551,14.83,161.16,161.12,21.24105933]
[1721219681756,14.83,161.17,161.13,45.0]
[1721219681968,14.83,161.17,161.14,1.24088999]
[1721219682158,14.83,161.17,161.15,1.24088999]
[1721219682343,31.2178,161.23,161.13,45.0]
[1721219682344,14.83,161.19,161.16,1.24087844]
[1721219682662,14.83,161.2,161.16,1.24087844]
[1721219682863,14.83,161.2,161.16,11.24087844]
[1721219683044,14.83,161.2,161.17,45.0]
[1721219683243,14.83,161.2,161.18,1.24067438]
[1721219683466,14.83,161.21,161.18,1.24067438]
[1721219684261,1.55075632,161.23,161.18,1.24067438]
[1721219684460,6.2023,161.23,161.18,1.24067438]
[1721219685175,12.5789,161.24,161.18,1.24067438]
[1721219685345,7.75300714,161.23,161.18,1.24067438]
[1721219685686,6.2023,161.23,161.18,1.24067438]
[1721219686362,6.2023,161.23,161.18,31.24067438]
[1721219689269,6.2019,161.24,161.18,31.24067438]
[1721219689473,6.2016,161.25,161.19,45.0]
[1721219689659,7.75216051,161.25,161.19,75.0]
[1721219689850,6.2016,161.25,161.19,75.0]
[1721219690269,6.2016,161.25,161.19,45.0]
[1721219690456,31.14049356,161.29,161.2,1.2403805]
[1721219690671,6.2014,161.26,161.21,1.24038089]
[1721219690981,6.2016,161.25,161.21,1.24038089]
[1721219691771,6.2016,161.25,161.19,45.0]
[1721219691972,6.2012,161.26,161.2,11.2403948]
[1721219692180,6.2012,161.26,161.21,46.24031002]
[1721219693298,6.2012,161.26,161.21,76.24031002]
[1721219694383,6.2008,161.27,161.21,76.24031002]
[1721219695259,6.2004,161.28,161.21,76.24031002]
[1721219695658,1.5501808,161.31,161.22,10.0]
[1721219695995,6.2003,161.29,161.23,46.24011079]
[1721219696275,1.5501808,161.31,161.24,1.23992382]
[1721219696576,1.5501808,161.31,161.23,45.0]
[1721219696882,1.5501808,161.31,161.24,30.0]
[1721219697267,6.1997,161.3,161.24,30.0]
[1721219697597,6.1997,161.3,161.25,45.0]
[1721219697771,52.1684,161.32,161.24,30.0]
[1721219697772,7.75012298,161.29,161.24,30.0]
[1721219698089,6.1997,161.3,161.24,30.0]
[1721219698261,7.74970086,161.31,161.25,45.0]
[1721219698565,6.1995,161.31,161.26,1.23992242]
[1721219698765,7.74945429,161.31,161.27,1.23976403]
[1721219699361,1.54997927,161.34,161.27,10.0]
[1721219699561,1.54962175,161.35,161.28,82.40219853]
[1721219699780,6.1969,161.37,161.28,91.163]
[1721219699975,1.54947643,161.37,161.29,1.23869175]
[1721219700176,7.74576876,161.39,161.3,20.0]
[1721219700489,1.54925055,161.39,161.31,46.23807506]
[1721219700674,7.74545055,161.39,161.31,46.23807506]
[1721219700867,1.54923116,161.4,161.32,10.0]
[1721219701067,29.59,161.41,161.33,46.23776886]
[1721219701281,35.7854,161.41,161.33,46.23776886]
[1721219701787,37.53862297,161.44,161.34,10.0]
[1721219701985,31.13912297,161.44,161.35,60.3767]
[1721219702563,31.13912297,161.44,161.35,90.3767]